[Event "*** Titled Tuesday Blitz"]
[Site "Chess.com"]
[Date "2018.10.02"]
[Round "3"]
[White "BilodeauA"]
[Black "robbykevlishvili"]
[Result "0-1"]
[WhiteElo "2882"]
[BlackElo "2677"]
[TimeControl "180+2"]
[EndTime "13:38:42 PDT"]
[Termination "robbykevlishvili won by resignation"]

1. d4 {[%clk 0:03:00.1]} 1... Nf6 {[%clk 0:03:00.2]} 2. Nc3 {[%clk 0:03:00.9]}
2... d5 {[%clk 0:02:58.1]} 3. Bf4 {[%clk 0:03:02]} 3... e6 {[%clk 0:02:56.4]} 4.
Nb5 {[%clk 0:03:02.8]} 4... Na6 {[%clk 0:02:55.6]} 5. e3 {[%clk 0:03:03.9]} 5...
c6 {[%clk 0:02:56.4]} 6. Nc3 {[%clk 0:03:04.6]} 6... Nc7 {[%clk 0:02:58]} 7. Bd3
{[%clk 0:03:04.6]} 7... Bd6 {[%clk 0:02:58.4]} 8. Qf3 {[%clk 0:03:03.9]} 8...
Bxf4 {[%clk 0:02:55.1]} 9. Qxf4 {[%clk 0:03:04.7]} 9... b6 {[%clk 0:02:56.4]}
10. Nf3 {[%clk 0:03:05.2]} 10... Ba6 {[%clk 0:02:57.2]} 11. Ne5 {[%clk
0:02:50.3]} 11... Qd6 {[%clk 0:02:48.5]} 12. O-O {[%clk 0:02:37.3]} 12... Rd8
{[%clk 0:02:43.4]} 13. a4 {[%clk 0:02:31.9]} 13... Bxd3 {[%clk 0:02:34.5]} 14.
cxd3 {[%clk 0:02:32.3]} 14... a5 {[%clk 0:02:35.3]} 15. Rac1 {[%clk 0:02:33.5]}
15... Na6 {[%clk 0:02:36.3]} 16. Na2 {[%clk 0:02:11.9]} 16... c5 {[%clk
0:02:35.6]} 17. Nc3 {[%clk 0:02:10.8]} 17... O-O {[%clk 0:02:33.1]} 18. Nb5
{[%clk 0:02:12]} 18... Qb8 {[%clk 0:02:28.8]} 19. h3 {[%clk 0:01:56.2]} 19...
Rc8 {[%clk 0:02:26]} 20. Qg3 {[%clk 0:01:36.9]} 20... Rfd8 {[%clk 0:02:23]} 21.
Rc3 {[%clk 0:01:36.8]} 21... cxd4 {[%clk 0:02:23.4]} 22. exd4 {[%clk 0:01:36.9]}
22... Nb4 {[%clk 0:02:18.6]} 23. Rfc1 {[%clk 0:01:32.1]} 23... Na2 {[%clk
0:02:14.1]} 24. Rxc8 {[%clk 0:01:24.8]} 24... Rxc8 {[%clk 0:02:15.1]} 25. Nc6
{[%clk 0:01:22.6]} 25... Qxg3 {[%clk 0:01:52.3]} 26. Ne7+ {[%clk 0:01:20.5]}
26... Kf8 {[%clk 0:01:38.4]} 27. Rxc8+ {[%clk 0:01:19.3]} 27... Kxe7 {[%clk
0:01:40.3]} 28. fxg3 {[%clk 0:01:20.7]} 28... Nb4 {[%clk 0:01:40.7]} 29. Rc3
{[%clk 0:01:10.8]} 29... Ne8 {[%clk 0:01:41.2]} 30. Kf2 {[%clk 0:01:10.4]} 30...
Kd7 {[%clk 0:01:42.8]} 31. Ke3 {[%clk 0:01:09.9]} 31... Nc6 {[%clk 0:01:44.2]}
32. Rc1 {[%clk 0:01:10.4]} 32... Nd6 {[%clk 0:01:42]} 33. Nxd6 {[%clk
0:01:08.5]} 33... Kxd6 {[%clk 0:01:43.9]} 34. g4 {[%clk 0:01:10.1]} 34... f6
{[%clk 0:01:43.4]} 35. b3 {[%clk 0:01:11.4]} 35... e5 {[%clk 0:01:44.5]} 36.
dxe5+ {[%clk 0:01:12.4]} 36... fxe5 {[%clk 0:01:46.4]} 37. Rb1 {[%clk
0:01:10.6]} 37... Kc5 {[%clk 0:01:46]} 38. Rc1+ {[%clk 0:01:11.6]} 38... Kd6
{[%clk 0:01:46.7]} 39. Rf1 {[%clk 0:01:10.8]} 39... Ke7 {[%clk 0:01:43.6]} 40.
Rf5 {[%clk 0:01:00.8]} 40... g6 {[%clk 0:01:43.8]} 41. Rf1 {[%clk 0:01:01.7]}
41... Nd4 {[%clk 0:01:44.9]} 42. g5 {[%clk 0:01:01.7]} 42... Nf5+ {[%clk
0:01:39.6]} 43. Kd2 {[%clk 0:01:00]} 43... d4 {[%clk 0:01:26.6]} 44. g4 {[%clk
0:00:54.9]} 44... Ne3 {[%clk 0:01:27.6]} 45. Re1 {[%clk 0:00:46.9]} 45... Kd6
{[%clk 0:01:18.2]} 46. Rc1 {[%clk 0:00:47.7]} 46... Kd7 {[%clk 0:01:16.2]} 47.
Ke2 {[%clk 0:00:49.2]} 47... Nd5 {[%clk 0:01:16.2]} 48. Kf3 {[%clk 0:00:47.1]}
48... Nc3 {[%clk 0:01:16.4]} 49. h4 {[%clk 0:00:48.6]} 49... Ke6 {[%clk
0:01:17.1]} 50. h5 {[%clk 0:00:49.9]} 50... Kd5 {[%clk 0:01:14.2]} 51. hxg6
{[%clk 0:00:51.3]} 51... hxg6 {[%clk 0:01:15.4]} 52. Rh1 {[%clk 0:00:52.9]}
52... e4+ {[%clk 0:01:16.7]} 53. dxe4+ {[%clk 0:00:52.8]} 53... Nxe4 {[%clk
0:01:18.6]} 54. Kf4 {[%clk 0:00:49.3]} 54... d3 {[%clk 0:01:17.8]} 55. Ke3
{[%clk 0:00:45.9]} 55... d2 {[%clk 0:01:13.3]} 56. Ra1 {[%clk 0:00:36.5]} 56...
Ke5 {[%clk 0:01:09.4]} 57. Ke2 {[%clk 0:00:33]} 57... Kd4 {[%clk 0:01:08.3]} 58.
Rg1 {[%clk 0:00:23.3]} 58... Kc3 {[%clk 0:01:08.2]} 59. Ke3 {[%clk 0:00:21.5]}
59... Nc5 {[%clk 0:01:02]} 60. Ke2 {[%clk 0:00:15.7]} 60... Kc2 {[%clk
0:01:00.5]} 61. Ra1 {[%clk 0:00:09.7]} 61... Ne4 {[%clk 0:00:54.9]} 62. Ra2+
{[%clk 0:00:08]} 62... Kc1 {[%clk 0:00:44]} 63. Ra1+ {[%clk 0:00:07.7]} 63...
Kb2 {[%clk 0:00:45.2]} 64. Rg1 {[%clk 0:00:03.2]} 64... Kc2 {[%clk 0:00:46.3]}
65. Ke3 {[%clk 0:00:04.6]} 65... Nc5 {[%clk 0:00:30.8]} 66. Kd4 {[%clk
0:00:03.3]} 66... Nxb3+ {[%clk 0:00:29.6]} 67. Ke5 {[%clk 0:00:04.4]} 67... Nc5
{[%clk 0:00:25.9]} 68. Kf6 {[%clk 0:00:05.2]} 68... Nxa4 {[%clk 0:00:26.4]} 69.
Kxg6 {[%clk 0:00:06.3]} 69... Nc5 {[%clk 0:00:27.4]} 70. Kh7 {[%clk 0:00:07.8]}
70... Ne6 {[%clk 0:00:27.9]} 71. g6 {[%clk 0:00:08.8]} 71... d1=Q {[%clk
0:00:26.4]} 72. Rxd1 {[%clk 0:00:09.5]} 72... Kxd1 {[%clk 0:00:27.6]} 73. Kg8
{[%clk 0:00:04.3]} 73... a4 {[%clk 0:00:27.8]} 74. Kf7 {[%clk 0:00:05.3]} 74...
a3 {[%clk 0:00:21.6]} 75. Kxe6 {[%clk 0:00:06.5]} 75... a2 {[%clk 0:00:22.8]}
76. g7 {[%clk 0:00:07.3]} 76... a1=Q {[%clk 0:00:23.9]} 77. Kf7 {[%clk
0:00:08.8]} 77... Qa2+ {[%clk 0:00:24.8]} 78. Kf8 {[%clk 0:00:09.9]} 78... Qa8+
{[%clk 0:00:25]} 79. Ke7 {[%clk 0:00:10.7]} 79... Qb7+ {[%clk 0:00:26.2]} 80.
Kf8 {[%clk 0:00:12.3]} 80... Qc8+ {[%clk 0:00:27.7]} 81. Ke7 {[%clk 0:00:13.2]}
81... Qxg4 {[%clk 0:00:29.2]} 82. Kf7 {[%clk 0:00:14.5]} 82... b5 {[%clk
0:00:30.6]} 0-1

[Event "*** Titled Tuesday Blitz"]
[Site "Chess.com"]
[Date "2018.10.02"]
[Round "3"]
[White "Federtiu"]
[Black "Indianlad"]
[Result "0-1"]
[WhiteElo "2613"]
[BlackElo "2814"]
[TimeControl "180+2"]
[EndTime "13:38:45 PDT"]
[Termination "Indianlad won by resignation"]

1. e4 {[%clk 0:03:01]} 1... e5 {[%clk 0:03:01.1]} 2. Nf3 {[%clk 0:03:01.4]} 2...
Nc6 {[%clk 0:03:02.7]} 3. a3 {[%clk 0:03:03]} 3... Nf6 {[%clk 0:03:02.5]} 4. Nc3
{[%clk 0:03:04.1]} 4... d5 {[%clk 0:03:04.1]} 5. exd5 {[%clk 0:03:03.9]} 5...
Nxd5 {[%clk 0:03:06]} 6. Bb5 {[%clk 0:03:04.1]} 6... Nxc3 {[%clk 0:03:06.4]} 7.
bxc3 {[%clk 0:03:05.3]} 7... Bd6 {[%clk 0:03:07.1]} 8. d4 {[%clk 0:03:00.8]}
8... exd4 {[%clk 0:03:06.1]} 9. Qe2+ {[%clk 0:03:02.1]} 9... Qe7 {[%clk
0:03:00.6]} 10. Qxe7+ {[%clk 0:03:02.1]} 10... Kxe7 {[%clk 0:03:00.4]} 11. cxd4
{[%clk 0:02:50.1]} 11... Bg4 {[%clk 0:03:01.6]} 12. c3 {[%clk 0:02:43]} 12...
Bxf3 {[%clk 0:02:53.4]} 13. gxf3 {[%clk 0:02:44.1]} 13... Na5 {[%clk 0:02:53.6]}
14. Rb1 {[%clk 0:02:36.8]} 14... a6 {[%clk 0:02:54.7]} 15. Bd3 {[%clk
0:02:35.7]} 15... b5 {[%clk 0:02:52.9]} 16. f4 {[%clk 0:01:48.6]} 16... f5
{[%clk 0:02:37.5]} 17. Rg1 {[%clk 0:01:37.2]} 17... g6 {[%clk 0:02:38]} 18. h4
{[%clk 0:01:35.5]} 18... Kf6 {[%clk 0:02:32.6]} 19. Ke2 {[%clk 0:01:35.9]} 19...
Rhe8+ {[%clk 0:02:28.3]} 20. Kf3 {[%clk 0:01:36.8]} 20... Rab8 {[%clk
0:02:26.3]} 21. h5 {[%clk 0:01:34.5]} 21... Nc4 {[%clk 0:02:27]} 22. a4 {[%clk
0:01:28.5]} 22... c6 {[%clk 0:02:19]} 23. axb5 {[%clk 0:01:27.2]} 23... axb5
{[%clk 0:02:12.9]} 24. hxg6 {[%clk 0:01:21.9]} 24... hxg6 {[%clk 0:02:13.5]} 25.
Rh1 {[%clk 0:01:23.4]} 25... Rh8 {[%clk 0:01:47.2]} 26. Rxh8 {[%clk 0:01:09.5]}
26... Rxh8 {[%clk 0:01:49.1]} 27. Bxc4 {[%clk 0:00:55.2]} 27... bxc4 {[%clk
0:01:51]} 28. Rb6 {[%clk 0:00:53.8]} 28... Rh3+ {[%clk 0:01:51.8]} 29. Ke2
{[%clk 0:00:35]} 29... Rxc3 {[%clk 0:01:45.9]} 30. Bd2 {[%clk 0:00:26.5]} 30...
Rb3 {[%clk 0:00:56.7]} 31. Rxc6 {[%clk 0:00:25.5]} 31... Ke6 {[%clk 0:00:57.8]}
32. Rxc4 {[%clk 0:00:23.5]} 32... Kd5 {[%clk 0:00:59.4]} 33. Ra4 {[%clk
0:00:15.8]} 33... Bc7 {[%clk 0:00:55.9]} 34. Ra6 {[%clk 0:00:15.4]} 34... Bb6
{[%clk 0:00:56.4]} 35. Be3 {[%clk 0:00:14.1]} 35... Ke4 {[%clk 0:00:56.8]} 36.
Ra2 {[%clk 0:00:07.6]} 36... Kd5 {[%clk 0:00:37]} 37. Rd2 {[%clk 0:00:05.8]}
37... Ba5 {[%clk 0:00:37.8]} 38. Rc2 {[%clk 0:00:06.3]} 38... Bc3 {[%clk
0:00:39.2]} 39. Ra2 {[%clk 0:00:06.2]} 39... Ke4 {[%clk 0:00:39.2]} 40. Rc2
{[%clk 0:00:04.4]} 40... Bb4 {[%clk 0:00:36.1]} 41. Ra2 {[%clk 0:00:04.2]} 41...
Bc3 {[%clk 0:00:35.1]} 42. Rc2 {[%clk 0:00:05.3]} 42... Ba5 {[%clk 0:00:36.4]}
43. Ra2 {[%clk 0:00:06.3]} 43... Bb4 {[%clk 0:00:37.4]} 44. Rc2 {[%clk
0:00:07.5]} 44... Bc3 {[%clk 0:00:38.9]} 45. Ra2 {[%clk 0:00:08.3]} 45... Bb4
{[%clk 0:00:33.6]} 46. Rc2 {[%clk 0:00:07.9]} 46... Bd6 {[%clk 0:00:35.2]} 47.
Ra2 {[%clk 0:00:07]} 47... Rb5 {[%clk 0:00:31.8]} 48. Ra6 {[%clk 0:00:07]} 48...
Rb2+ {[%clk 0:00:31.2]} 49. Kd1 {[%clk 0:00:06.8]} 49... Bb4 {[%clk 0:00:29.9]}
50. Rxg6 {[%clk 0:00:06.7]} 50... Kd3 {[%clk 0:00:30.9]} 51. Bc1 {[%clk
0:00:03.2]} 51... Rxf2 {[%clk 0:00:31]} 52. Rg3+ {[%clk 0:00:04.4]} 52... Kc4
{[%clk 0:00:28.9]} 53. Rg1 {[%clk 0:00:03.1]} 53... Kxd4 {[%clk 0:00:27.6]} 54.
Rg3 {[%clk 0:00:04.4]} 54... Rh2 {[%clk 0:00:24.6]} 55. Rf3 {[%clk 0:00:03.5]}
55... Kc4 {[%clk 0:00:20.7]} 56. Rg3 {[%clk 0:00:04.5]} 56... Bc3 {[%clk
0:00:21.9]} 57. Rg5 {[%clk 0:00:04.9]} 57... Bd4 {[%clk 0:00:21.8]} 58. Rg3
{[%clk 0:00:04.2]} 58... Kd5 {[%clk 0:00:22]} 59. Bd2 {[%clk 0:00:03.2]} 59...
Ke4 {[%clk 0:00:22.9]} 60. Bc1 {[%clk 0:00:04.2]} 60... Rh1+ {[%clk 0:00:24]}
61. Kc2 {[%clk 0:00:04.8]} 61... Rf1 {[%clk 0:00:25.4]} 62. Rg8 {[%clk
0:00:05.4]} 62... Rf2+ {[%clk 0:00:26.8]} 63. Kb3 {[%clk 0:00:06.6]} 63... Rf1
{[%clk 0:00:26.9]} 64. Re8+ {[%clk 0:00:06.7]} 64... Kd3 {[%clk 0:00:28.4]} 65.
Ba3 {[%clk 0:00:06.9]} 65... Rb1+ {[%clk 0:00:29.6]} 66. Ka2 {[%clk 0:00:07.5]}
66... Rb5 {[%clk 0:00:31]} 67. Bd6 {[%clk 0:00:08.1]} 67... Kc2 {[%clk
0:00:30.1]} 68. Rc8+ {[%clk 0:00:07.3]} 68... Bc3 {[%clk 0:00:31.3]} 69. Ba3
{[%clk 0:00:03.4]} 69... Rd5 {[%clk 0:00:30.8]} 70. Bb4 {[%clk 0:00:03.7]} 70...
Rd3 {[%clk 0:00:30.4]} 71. Bxc3 {[%clk 0:00:04.9]} 71... Rxc3 {[%clk 0:00:31.2]}
72. Rf8 {[%clk 0:00:06.5]} 72... Rc4 {[%clk 0:00:32.6]} 73. Ka3 {[%clk 0:00:03]}
73... Rxf4 {[%clk 0:00:34.1]} 74. Re8 {[%clk 0:00:04]} 74... Re4 {[%clk
0:00:33.3]} 75. Rf8 {[%clk 0:00:04.5]} 75... f4 {[%clk 0:00:34.8]} 76. Rf7
{[%clk 0:00:06.4]} 76... Kd2 {[%clk 0:00:35]} 77. Kb3 {[%clk 0:00:07.7]} 77...
Ke2 {[%clk 0:00:36.5]} 78. Kc3 {[%clk 0:00:08.6]} 78... f3 {[%clk 0:00:38]} 79.
Ra7 {[%clk 0:00:10.5]} 79... f2 {[%clk 0:00:38.8]} 80. Ra2+ {[%clk 0:00:12.4]}
80... Kf3 {[%clk 0:00:40.3]} 81. Ra1 {[%clk 0:00:13.1]} 81... Re1 {[%clk
0:00:41.5]} 0-1

[Event "*** Titled Tuesday Blitz"]
[Site "Chess.com"]
[Date "2018.10.02"]
[Round "3"]
[White "TST2014"]
[Black "Ramosha"]
[Result "0-1"]
[WhiteElo "2461"]
[BlackElo "2467"]
[TimeControl "180+2"]
[EndTime "13:39:14 PDT"]
[Termination "Ramosha won on time"]

1. d4 {[%clk 0:01:26.6]} 1... e6 {[%clk 0:02:58.5]} 2. c4 {[%clk 0:01:27.8]}
2... d5 {[%clk 0:02:59.1]} 3. Nf3 {[%clk 0:01:28.6]} 3... Nf6 {[%clk 0:02:59.4]}
4. Nc3 {[%clk 0:01:29.2]} 4... Be7 {[%clk 0:02:59.3]} 5. Bf4 {[%clk 0:01:29.5]}
5... O-O {[%clk 0:02:59.9]} 6. e3 {[%clk 0:01:30.4]} 6... c5 {[%clk 0:03:00.9]}
7. dxc5 {[%clk 0:01:30.9]} 7... Bxc5 {[%clk 0:03:01.3]} 8. a3 {[%clk 0:01:32.3]}
8... Nc6 {[%clk 0:03:01.4]} 9. Qc2 {[%clk 0:01:32.9]} 9... Bd6 {[%clk
0:03:01.4]} 10. cxd5 {[%clk 0:01:28.5]} 10... exd5 {[%clk 0:02:30.8]} 11. Bg5
{[%clk 0:01:26.9]} 11... Be6 {[%clk 0:02:23.9]} 12. Bd3 {[%clk 0:01:26.2]} 12...
h6 {[%clk 0:02:23.9]} 13. Bh4 {[%clk 0:01:26.9]} 13... Ne5 {[%clk 0:02:14.4]}
14. Nxe5 {[%clk 0:01:23.3]} 14... Bxe5 {[%clk 0:02:16.3]} 15. f4 {[%clk
0:01:20.9]} 15... Bd6 {[%clk 0:01:17.6]} 16. Rd1 {[%clk 0:01:08.9]} 16... Be7
{[%clk 0:01:17.5]} 17. O-O {[%clk 0:01:05.9]} 17... Rc8 {[%clk 0:01:17.3]} 18.
f5 {[%clk 0:00:54.8]} 18... Bd7 {[%clk 0:01:17.7]} 19. Qb3 {[%clk 0:00:51]}
19... Bc6 {[%clk 0:01:15.3]} 20. Kh1 {[%clk 0:00:45.8]} 20... Ng4 {[%clk
0:01:09.3]} 21. Bxe7 {[%clk 0:00:38.5]} 21... Qxe7 {[%clk 0:01:11.2]} 22. Nxd5
{[%clk 0:00:32.8]} 22... Bxd5 {[%clk 0:01:10.1]} 23. Qxd5 {[%clk 0:00:34.3]}
23... Nxe3 {[%clk 0:01:08]} 24. f6 {[%clk 0:00:32.4]} 24... Nxd5 {[%clk
0:00:41.6]} 25. fxe7 {[%clk 0:00:32.9]} 25... Nxe7 {[%clk 0:00:43.5]} 26. Rc1
{[%clk 0:00:28.9]} 26... Rxc1 {[%clk 0:00:41.9]} 27. Rxc1 {[%clk 0:00:28.9]}
27... Rc8 {[%clk 0:00:42.2]} 28. Re1 {[%clk 0:00:29.4]} 28... Nc6 {[%clk
0:00:39.5]} 29. Be4 {[%clk 0:00:29.9]} 29... Kf8 {[%clk 0:00:37.1]} 30. Bf3
{[%clk 0:00:30]} 30... Re8 {[%clk 0:00:35.4]} 31. Rc1 {[%clk 0:00:29.8]} 31...
Re6 {[%clk 0:00:36.1]} 32. Kg1 {[%clk 0:00:29.8]} 32... Rd6 {[%clk 0:00:36.8]}
33. Rc2 {[%clk 0:00:27.9]} 33... f5 {[%clk 0:00:34.8]} 34. Kf2 {[%clk
0:00:28.8]} 34... Ke7 {[%clk 0:00:35.6]} 35. h4 {[%clk 0:00:29.3]} 35... g6
{[%clk 0:00:35.6]} 36. g3 {[%clk 0:00:29.3]} 36... Kf6 {[%clk 0:00:36.5]} 37. b4
{[%clk 0:00:28.9]} 37... Nd4 {[%clk 0:00:22.6]} 38. Rc7 {[%clk 0:00:27.6]} 38...
Nxf3 {[%clk 0:00:23.5]} 39. Kxf3 {[%clk 0:00:29.1]} 39... Rd3+ {[%clk
0:00:22.9]} 40. Kf2 {[%clk 0:00:29.4]} 40... Rxa3 {[%clk 0:00:23.3]} 41. Rxb7
{[%clk 0:00:31]} 41... g5 {[%clk 0:00:22.9]} 42. h5 {[%clk 0:00:30.9]} 42... g4
{[%clk 0:00:21.3]} 43. Rh7 {[%clk 0:00:30.4]} 43... Kg5 {[%clk 0:00:21.8]} 44.
Rf7 {[%clk 0:00:27.2]} 44... Rf3+ {[%clk 0:00:20.7]} 45. Kg2 {[%clk 0:00:28.1]}
45... Rb3 {[%clk 0:00:20.5]} 46. Rxa7 {[%clk 0:00:26.1]} 46... Rxb4 {[%clk
0:00:21.4]} 47. Ra5 {[%clk 0:00:26.2]} 47... Rb2+ {[%clk 0:00:21.1]} 48. Kg1
{[%clk 0:00:27.4]} 48... Rb3 {[%clk 0:00:22.4]} 49. Kg2 {[%clk 0:00:28.2]} 49...
Rf3 {[%clk 0:00:23.3]} 50. Ra8 {[%clk 0:00:28.1]} 50... Kxh5 {[%clk 0:00:23.5]}
51. Rg8 {[%clk 0:00:29.5]} 51... Ra3 {[%clk 0:00:23.8]} 52. Rg7 {[%clk
0:00:30.6]} 52... Ra2+ {[%clk 0:00:24.5]} 53. Kg1 {[%clk 0:00:31.1]} 53... Ra6
{[%clk 0:00:25.4]} 54. Kg2 {[%clk 0:00:31.7]} 54... Rg6 {[%clk 0:00:26.2]} 55.
Rf7 {[%clk 0:00:32.5]} 55... Kg5 {[%clk 0:00:27.4]} 56. Kf2 {[%clk 0:00:33.4]}
56... Ra6 {[%clk 0:00:27.6]} 57. Rg7+ {[%clk 0:00:33.7]} 57... Kf6 {[%clk
0:00:28.4]} 58. Rh7 {[%clk 0:00:35]} 58... Kg6 {[%clk 0:00:28.7]} 59. Rh8 {[%clk
0:00:35.7]} 59... Ra2+ {[%clk 0:00:29.3]} 60. Kg1 {[%clk 0:00:33.2]} 60... Kg7
{[%clk 0:00:25]} 61. Rb8 {[%clk 0:00:32.9]} 61... Kf6 {[%clk 0:00:25.9]} 62.
Rb6+ {[%clk 0:00:33.6]} 62... Kg5 {[%clk 0:00:26.6]} 63. Rb5 {[%clk 0:00:35]}
63... h5 {[%clk 0:00:27.7]} 64. Rc5 {[%clk 0:00:36]} 64... Rd2 {[%clk
0:00:28.4]} 65. Rb5 {[%clk 0:00:36.4]} 65... Rd3 {[%clk 0:00:29]} 66. Kg2 {[%clk
0:00:36.8]} 66... Re3 {[%clk 0:00:28.7]} 67. Rc5 {[%clk 0:00:37.3]} 67... Rd3
{[%clk 0:00:29.7]} 68. Rb5 {[%clk 0:00:38.3]} 68... Rd8 {[%clk 0:00:30.7]} 69.
Ra5 {[%clk 0:00:37.6]} 69... Rf8 {[%clk 0:00:30.7]} 70. Ra7 {[%clk 0:00:31.8]}
70... h4 {[%clk 0:00:31.4]} 71. gxh4+ {[%clk 0:00:30.3]} 71... Kxh4 {[%clk
0:00:32.2]} 72. Rh7+ {[%clk 0:00:30.8]} 72... Kg5 {[%clk 0:00:32.6]} 73. Rg7+
{[%clk 0:00:31.7]} 73... Kf4 {[%clk 0:00:33.6]} 74. Ra7 {[%clk 0:00:31.6]} 74...
Rd8 {[%clk 0:00:34.6]} 75. Ra4+ {[%clk 0:00:32.4]} 75... Kg5 {[%clk 0:00:35.7]}
76. Ra3 {[%clk 0:00:29]} 76... Rd2+ {[%clk 0:00:35.8]} 77. Kf1 {[%clk
0:00:29.3]} 77... f4 {[%clk 0:00:34]} 78. Ra8 {[%clk 0:00:29.4]} 78... Kh4
{[%clk 0:00:34.3]} 79. Ra3 {[%clk 0:00:28.7]} 79... f3 {[%clk 0:00:34.9]} 80.
Ke1 {[%clk 0:00:28.1]} 80... Re2+ {[%clk 0:00:35.5]} 81. Kf1 {[%clk 0:00:29.2]}
81... Rb2 {[%clk 0:00:35.7]} 82. Ra1 {[%clk 0:00:26.1]} 82... Kg3 {[%clk
0:00:36.6]} 83. Kg1 {[%clk 0:00:26.7]} 83... Rg2+ {[%clk 0:00:37.5]} 84. Kf1
{[%clk 0:00:27.5]} 84... Rh2 {[%clk 0:00:38.6]} 0-1

[Event "*** Titled Tuesday Blitz"]
[Site "Chess.com"]
[Date "2018.10.02"]
[Round "4"]
[White "aquaticpineapples"]
[Black "cool4chess"]
[Result "0-1"]
[WhiteElo "2026"]
[BlackElo "2162"]
[TimeControl "180+2"]
[EndTime "13:42:20 PDT"]
[Termination "cool4chess won by checkmate"]

1. d4 {[%clk 0:03:01.9]} 1... d5 {[%clk 0:03:00.6]} 2. Nf3 {[%clk 0:03:03.1]}
2... Nf6 {[%clk 0:03:01.2]} 3. e3 {[%clk 0:03:04.3]} 3... Bf5 {[%clk 0:03:01.1]}
4. c4 {[%clk 0:03:04.7]} 4... e6 {[%clk 0:03:02.5]} 5. Nc3 {[%clk 0:03:05.7]}
5... c6 {[%clk 0:03:03.4]} 6. Be2 {[%clk 0:03:06.2]} 6... h6 {[%clk 0:03:04.3]}
7. O-O {[%clk 0:03:05.2]} 7... Nbd7 {[%clk 0:03:05.4]} 8. b3 {[%clk 0:03:02.9]}
8... Bd6 {[%clk 0:03:02]} 9. Bb2 {[%clk 0:03:03.6]} 9... O-O {[%clk 0:03:03.6]}
10. Bd3 {[%clk 0:02:59.7]} 10... Ne4 {[%clk 0:03:02.8]} 11. Qc2 {[%clk
0:02:57.9]} 11... Ndf6 {[%clk 0:02:56]} 12. Nd2 {[%clk 0:02:44.3]} 12... Bxh2+
{[%clk 0:02:14]} 13. Kxh2 {[%clk 0:02:38.3]} 13... Ng4+ {[%clk 0:02:15]} 14. Kg1
{[%clk 0:02:39.3]} 14... Nxd2 {[%clk 0:02:16.2]} 15. Qxd2 {[%clk 0:02:32.4]}
15... Qh4 {[%clk 0:02:15.1]} 16. Rfd1 {[%clk 0:02:26.8]} 16... Bxd3 {[%clk
0:02:12.9]} 17. Qxd3 {[%clk 0:02:26.7]} 17... Qxf2+ {[%clk 0:02:12.1]} 18. Kh1
{[%clk 0:02:27.7]} 18... Qh4+ {[%clk 0:02:10.3]} 19. Kg1 {[%clk 0:02:28.8]}
19... Qh2+ {[%clk 0:02:11.3]} 20. Kf1 {[%clk 0:02:29.9]} 20... Qh1+ {[%clk
0:02:12.2]} 21. Ke2 {[%clk 0:02:31.3]} 21... Qxg2+ {[%clk 0:02:13.4]} 22. Ke1
{[%clk 0:02:32.1]} 22... Qf2# {[%clk 0:02:14.8]} 0-1

[Event "*** Titled Tuesday Blitz"]
[Site "Chess.com"]
[Date "2018.10.02"]
[Round "4"]
[White "TrimitziosP7"]
[Black "StoreySniper"]
[Result "1-0"]
[WhiteElo "2565"]
[BlackElo "2420"]
[TimeControl "180+2"]
[EndTime "13:43:50 PDT"]
[Termination "TrimitziosP7 won by resignation"]

1. d4 {[%clk 0:03:01.9]} 1... g6 {[%clk 0:03:00.5]} 2. c4 {[%clk 0:03:02.6]}
2... Bg7 {[%clk 0:03:02.1]} 3. Nc3 {[%clk 0:03:03.8]} 3... c5 {[%clk 0:03:03.5]}
4. d5 {[%clk 0:03:04.1]} 4... e5 {[%clk 0:03:03.3]} 5. e4 {[%clk 0:03:02.4]}
5... d6 {[%clk 0:03:04.7]} 6. Be3 {[%clk 0:03:03.6]} 6... Nf6 {[%clk 0:02:58.5]}
7. f3 {[%clk 0:03:04.2]} 7... h5 {[%clk 0:02:56]} 8. Qd2 {[%clk 0:03:05.3]} 8...
h4 {[%clk 0:02:55.3]} 9. O-O-O {[%clk 0:03:06.2]} 9... a6 {[%clk 0:02:55.6]} 10.
Kb1 {[%clk 0:03:05.8]} 10... Nbd7 {[%clk 0:02:50.8]} 11. Bd3 {[%clk 0:03:06.1]}
11... Nh5 {[%clk 0:02:47.4]} 12. Nge2 {[%clk 0:03:06.8]} 12... f6 {[%clk
0:02:24.5]} 13. g4 {[%clk 0:03:05.2]} 13... hxg3 {[%clk 0:02:22.7]} 14. hxg3
{[%clk 0:03:07.1]} 14... g5 {[%clk 0:02:21.3]} 15. Rh2 {[%clk 0:03:06.4]} 15...
Nf4 {[%clk 0:01:32.6]} 16. Rxh8+ {[%clk 0:03:05.8]} 16... Bxh8 {[%clk
0:01:33.4]} 17. gxf4 {[%clk 0:03:07.7]} 17... exf4 {[%clk 0:01:34.6]} 18. Nxf4
{[%clk 0:03:04.7]} 18... gxf4 {[%clk 0:01:33.6]} 19. Bxf4 {[%clk 0:03:06.6]}
19... Nf8 {[%clk 0:01:26.8]} 20. Qh2 {[%clk 0:03:07]} 20... Bg7 {[%clk 0:01:17]}
21. Bxd6 {[%clk 0:03:07.6]} 21... Kf7 {[%clk 0:01:02.9]} 22. Qh5+ {[%clk
0:03:01.4]} 22... Kg8 {[%clk 0:01:03.7]} 23. e5 {[%clk 0:03:01]} 23... fxe5
{[%clk 0:00:59.2]} 24. Bxe5 {[%clk 0:03:02.9]} 24... Bg4 {[%clk 0:00:38.4]} 25.
Qxg4 {[%clk 0:02:59.8]} 1-0

[Event "*** Titled Tuesday Blitz"]
[Site "Chess.com"]
[Date "2018.10.02"]
[Round "4"]
[White "W_Amadeus"]
[Black "Koksik_13"]
[Result "0-1"]
[WhiteElo "2613"]
[BlackElo "2706"]
[TimeControl "180+2"]
[EndTime "13:44:57 PDT"]
[Termination "Koksik_13 won by resignation"]

1. e4 {[%clk 0:03:01.9]} 1... e6 {[%clk 0:03:00]} 2. d4 {[%clk 0:03:02.2]} 2...
d5 {[%clk 0:03:01.4]} 3. Nc3 {[%clk 0:03:03.3]} 3... Bb4 {[%clk 0:03:01.8]} 4.
e5 {[%clk 0:03:03.8]} 4... c5 {[%clk 0:03:02.8]} 5. a3 {[%clk 0:03:05.4]} 5...
Bxc3+ {[%clk 0:03:03.4]} 6. bxc3 {[%clk 0:03:07.3]} 6... Ne7 {[%clk 0:03:04.9]}
7. Qg4 {[%clk 0:03:07]} 7... Qc7 {[%clk 0:03:05.9]} 8. Bd3 {[%clk 0:03:05.2]}
8... cxd4 {[%clk 0:03:05.5]} 9. Ne2 {[%clk 0:03:05.7]} 9... dxc3 {[%clk
0:03:06.3]} 10. Qxg7 {[%clk 0:03:05.2]} 10... Rg8 {[%clk 0:03:07.3]} 11. Qxh7
{[%clk 0:03:06.2]} 11... Nbc6 {[%clk 0:03:09]} 12. f4 {[%clk 0:02:43.9]} 12...
Bd7 {[%clk 0:03:09.7]} 13. g3 {[%clk 0:02:26.9]} 13... O-O-O {[%clk 0:03:10]}
14. Qxf7 {[%clk 0:02:21.3]} 14... Rdf8 {[%clk 0:03:05.1]} 15. Qh5 {[%clk
0:02:21.1]} 15... Rh8 {[%clk 0:03:02.4]} 16. Qg4 {[%clk 0:02:15.7]} 16... Rhg8
{[%clk 0:03:01.7]} 17. Qh3 {[%clk 0:02:09.2]} 17... Kb8 {[%clk 0:03:00.5]} 18.
Qg2 {[%clk 0:01:54.1]} 18... Nf5 {[%clk 0:03:01.2]} 19. Bxf5 {[%clk 0:01:36.7]}
19... Rxf5 {[%clk 0:03:01.7]} 20. Be3 {[%clk 0:01:38.3]} 20... d4 {[%clk
0:02:55.8]} 21. Nxd4 {[%clk 0:00:37.2]} 21... Nxd4 {[%clk 0:02:53.7]} 22. Bxd4
{[%clk 0:00:38.3]} 22... Rxf4 {[%clk 0:02:49.3]} 23. O-O-O {[%clk 0:00:39.5]}
23... Qa5 {[%clk 0:02:46.9]} 24. Bxc3 {[%clk 0:00:38.7]} 24... Qxc3 {[%clk
0:02:43]} 25. Rxd7 {[%clk 0:00:39.6]} 25... Qxa3+ {[%clk 0:02:43.8]} 26. Kd2
{[%clk 0:00:31.6]} 26... Qb4+ {[%clk 0:02:44.5]} 27. Kc1 {[%clk 0:00:29.3]}
27... Rc4 {[%clk 0:02:40.7]} 28. Rhd1 {[%clk 0:00:23.3]} 28... Rgc8 {[%clk
0:02:40.7]} 29. R1d2 {[%clk 0:00:19.7]} 29... Re4 {[%clk 0:02:40.5]} 30. Qf2
{[%clk 0:00:14.6]} 30... Qa3+ {[%clk 0:02:41.2]} 0-1